Cogmind - Beta 16 @@@ ROGUE MODE // 2025.12.11 @ 06:36:37 Player: Red Box Result: Destroyed by 0A-7PT(R) with Subdweller Beam Cannon Performance ------------- Evolutions (0) 0 Regions Visited (3) 600 Robots Destroyed (35) 175 Value Destroyed (650) 650 Prototype IDs (0) 0 Alien Tech Used (0) 0 Bonus (42) 42 TOTAL SCORE: 1467 Bonus ------- Follower Combat Kills 42 Cogmind --------- Core Integrity 0/250 Matter 248/300 Energy 196/250 System Corruption 2% Temperature Cool (9) Movement Rolling (115) Ox1 Location -10/Subcaves Parts ------- > --- POWER (1) -------- Ion Engine > --- PROPULSION (2) --- Light Treads Compact Wheel > --- UTILITY (2) ------ Large Storage Unit > --- WEAPON (2) ------- Medium Laser Light Cannon > --- INVENTORY (15) --- Light Treads Wheel Wheel Improved Heat Sink High-capacity Storage Unit High-capacity Battery (250) High-capacity Matter Pod (200) Particle Gun Beamcaster Assault Rifle Datajack Mining Laser Peak State ------------ > --- POWER ------------ Ion Engine > --- PROPULSION ------- Light Treads Wheel > --- UTILITY ---------- Large Storage Unit Improved Terrain Scanner > --- WEAPON ----------- Medium Laser Assault Rifle > --- INVENTORY -------- Ion Engine Light Treads Wheel Wheel Improved Heat Sink High-capacity Storage Unit High-capacity Battery High-capacity Matter Pod EM Pulse Gun EM Pulse Gun EM Pulse Gun Beamcaster Assault Rifle Datajack Mining Laser [Rating: 11] Favorites ----------- Power Ion Engine Engine Ion Engine Propulsion Aluminum Leg Treads Light Treads Leg Aluminum Leg Wheel Wheel Utility Improved Terrain Scanner Device Improved Terrain Scanner Storage Large Storage Unit Weapon EM Pulse Gun Energy Gun EM Pulse Gun Ballistic Gun Assault Rifle Ballistic Cannon Light Cannon Special Weapon Mining Laser Special Melee Weapon Datajack Build | -11 -10 -10 -10 ------- Run | Yrd Mat Min Sub Slots Evolved . | . . . . Power . | . . . . Propulsion . | . . . . Utility . | . . . . Weapon . | . . . . Parts Attached 29 | 8 16 3 2 Power 5 | 1 3 . 1 Engine 5 | 1 3 . 1 Core . | . . . . Reactor . | . . . . Propulsion 9 | 2 5 2 . Treads 1 | . 1 . . Leg 5 | 2 3 . . Wheel 3 | . 1 2 . Hover . | . . . . Flight . | . . . . Utility 5 | 3 2 . . Device 2 | 2 . . . Storage 3 | 1 2 . . Processor . | . . . . Hackware . | . . . . Protection . | . . . . Artifact . | . . . . Weapon 10 | 2 6 1 1 Energy Gun 5 | . 4 1 . Energy Cannon . | . . . . Ballistic Gun 2 | 2 . . . Ballistic Cannon 1 | . . . 1 Launcher . | . . . . Special Weapon 1 | . 1 . . Impact Weapon . | . . . . Slashing Weapon . | . . . . Piercing Weapon . | . . . . Special Melee Weapon 1 | . 1 . . Unidentified Prototypes . | . . . . Parts Lost 4 | . . . 4 Power 1 | . . . 1 Propulsion . | . . . . Utility 1 | . . . 1 Weapon 2 | . . . 2 Highest Loss Streak 4 | . . . 4 To Critical Strikes . | . . . . Average Backups 12 | 5 10 14 14 Power . | . . 1 . Propulsion 3 | 3 3 3 3 Utility 3 | . 2 3 4 Weapon 4 | 1 4 5 5 Tool/Special . | . . . . Unused Backups 17 | . 5 2 10 Power 1 | . 1 . . Propulsion 4 | . 1 . 3 Utility 9 | . 3 2 4 Weapon 3 | . . . 3 Tool/Special . | . . . . Average Slot Usage (%) 99 | . 100 100 97 Engine 14 | . 14 14 14 Treads 5 | . . 14 14 Leg 17 | . 27 . . Wheel 5 | . . 14 14 Device 13 | . 14 14 11 Storage 14 | . 14 14 14 Energy Gun 16 | . 13 20 25 Ballistic Gun 9 | . 11 7 . Special Weapon 1 | . 1 . . Peak Build Rating 11 | 10 10 11 11 Average Rating 9 | 6 9 10 10 On Entrance 7 | . 9 10 11 Avg Prop Armor Cover (%) 11 | . 11 11 12 Naked Turns . | . . . . Heaviest Build 30 | 12 30 30 30 Greatest Support 20 | 20 20 16 16 Greatest Overweight (x) 2 | 1 2 2 1 Average Overweight (x) . | . . 1 1 Largest Inventory Capacity 15 | 8 15 15 15 Average Capacity 12 | 7 12 15 15 Most Carried 15 | 8 15 15 15 Average Carried 12 | 5 10 14 14 Final Capacity 15 | 8 15 15 15 Final Carried 15 | 7 15 15 12 Class Distribution -------------------- 91% | Mutant 8% | Scavenger-Mutant Dominant Class ---------------- Mutant | -10/Materials Mutant | -10/Mines Mutant | -10/Subcaves Resources | -11 -10 -10 -10 ----------- Run | Yrd Mat Min Sub Matter Collected 1163 | 297 725 131 10 Remotely . | . . . . Salvage Created 1218 | 179 830 137 72 Parts 66 | 9 50 1 6 Haulers Intercepted 2 | . 2 . . Recyclers Shooed 1 | . . 1 . Parts Field Recycled . | . . . . Retrieved Matter . | . . . . Parts Self-Destructed 6 | . . . 6 Prevented 1 | . . . 1 Parts Restored . | . . . . Kills | -11 -10 -10 -10 ------- Run | Yrd Mat Min Sub Combat Hostiles Destroyed 24 | . 18 3 3 Guns 23 | . 18 3 2 Cannons 1 | . . . 1 Classes Destroyed 9 | 2 5 1 1 Builder 1 | . 1 . . Tunneler 4 | 4 . . . Hauler 2 | . 2 . . Recycler 3 | 1 1 1 . Watcher 3 | . 3 . . Swarmer 10 | . 8 . 2 Grunt 11 | . 10 1 . Subdweller 1 | . . . 1 Assembled 2 | . . 2 . Best Kill Streak 5 | 5 4 1 2 Combat Bots Only 4 | . 4 1 2 Max Kills in Single Turn 2 | 1 2 1 2 Gunslinging 1 | . 1 . 1 Exploded . | . . . . Melee . | . . . . Uniques/NPCs Destroyed . | . . . . Combat | -11 -10 -10 -10 -------- Run | Yrd Mat Min Sub Hostile Shots Fired 105 | . 66 18 21 Missed 31 | . 22 7 2 Hits 74 | . 44 11 19 Projectile 74 | . 44 11 19 Damage Taken 1095 | . 460 155 480 Core 250 | . 78 15 157 Absorbed by Shields . | . . . . Regen/Repaired (Parts) 41 | . 41 . . Core Remaining (%) 100 | 100 . . . Volleys Fired 101 | 13 60 17 11 Largest 2 | 2 2 2 2 Hottest 100 | 40 100 80 80 Shots Fired 197 | 26 114 35 22 Gun 184 | 26 109 35 14 Cannon 8 | . . . 8 Launcher . | . . . . Special 5 | . 5 . . Kinetic 89 | 26 43 12 8 Thermal 51 | . 31 12 8 Explosive . | . . . . Electromagnetic 57 | . 40 11 6 Robot Hit Streak 29 | 7 14 8 29 Robot Miss Streak 5 | 2 5 3 . Penetration Max . | . . . . Secondary Targets 5 | . 3 1 1 Max Gunslinging Chain 1 | . 1 1 1 Shots Hit Robots 130 | 18 69 22 21 Core Hits 56 | 7 36 8 5 Critical Kills 1 | . 1 . . Critical Parts Destroyed . | . . . . Critical Strikes 5 | . 4 1 . Burn 3 | . 2 1 . Destroy 1 | . 1 . . Corrupt 1 | . 1 . . Melee Attacks 1 | . 1 . . Impact . | . . . . Slashing . | . . . . Piercing . | . . . . Sneak Attacks 1 | . 1 . . Combat Hostiles . | . . . . Follow-up Attacks . | . . . . Damage Inflicted 1524 | 218 926 279 101 Guns 1505 | 218 926 279 82 Cannons 19 | . . . 19 Explosions . | . . . . Melee . | . . . . Ramming . | . . . . Kinetic 669 | 218 350 82 19 Thermal 326 | . 226 87 13 Explosive . | . . . . Electromagnetic 529 | . 350 110 69 Impact . | . . . . Slashing . | . . . . Piercing . | . . . . Highest Corruption 2 | . 2 2 2 Average Corruption 2 | . 2 2 2 Corruption Purged . | . . . . Corruption Blocked . | . . . . Effects 42 | . 22 18 2 Message Errors 7 | . 5 2 . Matter Fused 7 | . 3 3 1 Heat Flow Errors 8 | . 4 3 1 Energy Discharges 2 | . 1 1 . Parts Fused 2 | . 1 1 . Data Loss (minor) 6 | . 2 4 . Data Loss (major) 4 | . 4 . . Misfires 2 | . 1 1 . Alerts 3 | . . 3 . Weapon Failures 1 | . 1 . . Overload Shots . | . . . . Overflow Damage . | . . . . Projectiles . | . . . . Explosions . | . . . . Melee . | . . . . Knockbacks . | . . . . Impact . | . . . . Kinetic . | . . . . Secondary . | . . . . Self-Inflicted Damage . | . . . . Shots . | . . . . Rammed . | . . . . Targets Rammed . | . . . . Kicked . | . . . . Crushed . | . . . . Highest Temperature 184 | . 184 132 106 Average Temperature 40 | . 41 38 50 Received Heat Transfer 315 | . 120 42 153 Siege Activations . | . . . . Martial Activations . | . . . . Shielding Activations . | . . . . Robots Disrupted . | . . . . Combat Hostiles . | . . . . Robots Corrupted 1 | . 1 . . Combat Hostiles . | . . . . Parts Fried 3 | . 3 . . Impact Corruptions . | . . . . Robots Melted . | . . . . Combat Hostiles . | . . . . Parts Melted 4 | . 4 . . Heat Transferred 1147 | . 777 333 37 Parts Sabotaged . | . . . . Parts Stolen . | . . . . Parts Stripped . | . . . . Power Chain Reactions . | . . . . Alert | -11 -10 -10 -10 ------- Run | Yrd Mat Min Sub Maximum Alert Level 1 | . 1 . . Low Security (%) 87 | 100 81 100 . Level 1 12 | . 18 . . Level 2 . | . . . . Level 3 . | . . . . Level 4 . | . . . . Level 5 . | . . . . High Security . | . . . . Max Security . | . . . . Peak Influence 325 | 10 325 121 . Initial 121 | . . 121 . Average 82 | 2 114 20 . Influence Increases 826 | 25 657 63 81 Destroy 0b10 Robot/C 460 | . 360 40 60 Destroy 0b10 Robot/NC 65 | 25 35 5 . Destroy Leader 110 | . 90 10 10 Allied During Kill 19 | . . 8 11 Successful Hack 32 | . 32 . . Select Force Hacks 60 | . 60 . . Disable Machine 30 | . 30 . . Destroy Structure 5 | . 5 . . Lose Combat Pursuer 45 | . 45 . . Influence Decreases 826 | 25 344 376 81 Entered New Map 192 | . . 192 . Time Decay 574 | 25 344 184 21 Lost Part 40 | . . . 40 Lost Ally 20 | . . . 20 Squads Dispatched 4 | . 4 . . Investigation 3 | . 3 . . Extermination . | . . . . Reinforcement 1 | . 1 . . Assault . | . . . . Garrison . | . . . . Intercept . | . . . . Searches Triggered . | . . . . Construction Impeded . | . . . . Haulers Reinforced . | . . . . Active Scanning Responses . | . . . . Cargo Convoy Interrupts . | . . . . Stealth | -11 -10 -10 -10 --------- Run | Yrd Mat Min Sub Distress Signals . | . . . . Communications Jammed . | . . . . Distress Signals . | . . . . Times Spotted 37 | . 27 5 5 Peak Tracking Total 3 | . 3 2 3 Tactical Retreats 3 | . 2 1 . Traps | -11 -10 -10 -10 ------- Run | Yrd Mat Min Sub Traps Triggered 1 | . 1 . . Indirectly . | . . . . Trap Hack Attempts 57 | . 57 . . Triggered . | . . . . Disarmed 2 | . 2 . . Reprogrammed 3 | . 3 . . Reused . | . . . . Traps Extracted . | . . . . Installed . | . . . . Triggered . | . . . . Machines | -11 -10 -10 -10 ---------- Run | Yrd Mat Min Sub Machines Disabled 2 | . 2 . . Max in Single Turn 1 | . 1 . . Machines Repaired . | . . . . Machines Dismantled . | . . . . Machines Sabotaged . | . . . . Overloaded Fab Kills . | . . . . Hacking | -11 -10 -10 -10 --------- Run | Yrd Mat Min Sub Machines Accessed 11 | . 10 1 . Terminals 8 | . 7 1 . Fabricators . | . . . . Repair Stations 1 | . 1 . . Recycling Units 2 | . 2 . . Scanalyzers . | . . . . Garrison Access . | . . . . Total Hacks 47 | . 44 3 . Successful 30 | . 28 2 . Failed 16 | . 16 . . Catastrophic 1 | . 1 . . Database Lockouts 1 | . . 1 . Manual 36 | . 34 2 . Terminals 31 | . 28 3 . Fabricators . | . . . . Repair Stations 3 | . 3 . . Recycling Units 13 | . 13 . . Scanalyzers . | . . . . Garrison Access . | . . . . Terminal Hacks 7 | . 5 2 . Robot Analysis 3 | . 2 1 . Locate Traps 3 | . 3 . . Zone Layout 1 | . . 1 . Fabricator Hacks . | . . . . Repair Station Hacks 2 | . 2 . . Scan Component 1 | . 1 . . Repair 1 | . 1 . . Recycling Unit Hacks 2 | . 2 . . Retrieve Components 2 | . 2 . . Scanalyzer . | . . . . Garrison Access Hacks . | . . . . Unauthorized Hacks 19 | . 19 . . Terminals 11 | . 11 . . Track 2 | . 2 . . Botnet 3 | . 3 . . Operators 1 | . 1 . . Skim 5 | . 5 . . Fabricators . | . . . . Repair Stations . | . . . . Recycling Units 8 | . 8 . . Monitor 1 | . 1 . . Reject 2 | . 2 . . Recyclers 1 | . 1 . . Mask 2 | . 2 . . Tunnel 2 | . 2 . . Scanalyzers . | . . . . Garrison Access . | . . . . Data Cores Recovered . | . . . . Used . | . . . . Hacking Detections 9 | . 9 . . Full Trace Events 2 | . 2 . . Feedback Events . | . . . . Feedback Blocked . | . . . . Robot Schematics Acquired . | . . . . Robots Built . | . . . . Authchips . | . . . . Time . | . . . . Total Robot Build Rating . | . . . . Part Schematics Acquired . | . . . . Parts Built . | . . . . Authchips . | . . . . Time . | . . . . Total Part Build Rating . | . . . . Part Studies Acquired . | . . . . Parts Repaired 1 | . 1 . . Time 26 | . 26 . . Parts Recycled . | . . . . Recycled Matter . | . . . . Retrieved Matter . | . . . . Retrieved Components 19 | . 19 . . Parts Scanalyzed . | . . . . Part Schematics Acquired . | . . . . Parts Damaged . | . . . . Bothacking | -11 -10 -10 -10 ------------ Run | Yrd Mat Min Sub Used RIF Installer . | . . . . Robots Hacked 1 | . 1 . . Non-combat 1 | . 1 . . Combat . | . . . . Robot Hacks Applied 1 | . 1 . . no_distress 1 | . 1 . . Relay Couplers Released . | . . . . Fabnet Peak Effective % . | . . . . Robots Rewired . | . . . . Allies Hacked . | . . . . Hacks Repelled . | . . . . Allies | -11 -10 -10 -10 -------- Run | Yrd Mat Min Sub Total Allies 3 | . . 3 . Largest Group 3 | . . 3 3 Highest-Rated Group 40 | . . 40 40 Highest-Rated Ally 16 | . . 16 16 Total Orders 6 | . . 3 3 STAY 4 | . . 2 2 FOLLOW 2 | . . 1 1 Ally Attacks 35 | . . 6 29 Total Damage 133 | . . 82 51 Kills 2 | . . 1 1 Allies Corrupted . | . . . . Allies Melted . | . . . . Intel | -11 -10 -10 -10 ------- Run | Yrd Mat Min Sub Active Infowar (turns) 3590 | 61 2344 1024 161 Terrain 3590 | 61 2344 1024 161 Robot Analysis Total 3 | . 2 1 . Derelict Logs Recovered . | . . . . Drone Launches . | . . . . Drone Recoveries . | . . . . Exploration | -11 -10 -10 -10 ------------- Run | Yrd Mat Min Sub Turns Passed 3682 | 127 2344 1024 187 Spaces Moved 1933 | 64 1069 673 127 Core 12 | 12 . . . Treads . | . . . . Legs 1067 | 52 1015 . . Wheels 854 | . 54 673 127 Hover . | . . . . Flight . | . . . . Fastest Speed 50 | 50 110 110 115 Average Speed 131 | 112 148 111 115 Slowest Speed 190 | 120 190 115 115 Overloaded Moves . | . . . . Propulsion Burnouts . | . . . . Robots Hopped . | . . . . Potential Cave-ins 3 | . . 3 . Cave-ins Triggered . | . . . . Exploration Rate (%) 53 | 4 99 100 11 Regions Visited 3 Branch Regions 2 Pre-discovered Areas 2 | . 2 . . Known Exits Taken 1 | . . 1 . Unknown Exits Taken 2 | 1 1 . . Scrap Searched 1 | . . 1 . Spaces Dug 5 | . 5 . . Terrain Destroyed 5 | . 5 . . Melee . | . . . . Projectile 5 | . 5 . . AOE . | . . . . Terrain Rammed . | . . . . Walls Destroyed . | . . . . Machines Disabled . | . . . . Actions | -11 -10 -10 -10 --------- Run | Yrd Mat Min Sub Total 2859 | 92 1703 917 147 Wait 668 | . 451 211 6 Move 1930 | 63 1068 672 127 Hop . | . . . . Pick Up 32 | 7 20 5 . Fast Attach 7 | 7 . . . Attach 6 | . 2 1 3 Detach . | . . . . Swap 32 | 1 27 4 . Drop 25 | 1 17 7 . Fire 101 | 13 60 17 11 Melee 1 | . 1 . . Ram . | . . . . Kick . | . . . . Crush . | . . . . Escape Stasis . | . . . . Rewire . | . . . . Trap 57 | . 57 . . Miscellaneous . | . . . . Route ------- -11/Scrapyard -10/Materials (discovered 5 exits: [*Mat x3] / *Min / Sub) -10/Mines (discovered 3 exits: [*Mat x2] / *Sub) -10/Subcaves History --------- Turn | Location | Event 18 | -11/Scrapyard | Discovered new exit (range 15) 128 | -11/Scrapyard | Entered Materials 316 | -10/Materials | Build established: Mutant 331 | -10/Materials | Discovered new exit (range 11) 866 | -10/Materials | Discovered new exit (range 9) 999 | -10/Materials | Discovered new exit (range 16) 1158 | -10/Materials | Learned 4 Subcaves zone layouts 1217 | -10/Materials | Learned 2 Storage zone layouts 1259 | -10/Materials | Discovered new exit (range 7) 1267 | -10/Materials | Identified exit to Subcaves 1267 | -10/Materials | Learned location of 1 exit from Materials 1309 | -10/Materials | Learned location of 1 exit from Storage 1339 | -10/Materials | Loaded intel: 14 trap records 1369 | -10/Materials | Repaired EM Pulse Gun 1381 | -10/Materials | Learned Storage stockpile data 1435 | -10/Materials | Learned location of 1 exit from Recycling 1499 | -10/Materials | Learned Storage emergency access door positions 2354 | -10/Materials | Build established: Scavenger-Mutant 2472 | -10/Materials | Entered Mines 2473 | -10/Mines | Met a Derelict bent on vengeance 2479 | -10/Mines | Discovered new exit (range 5) 2512 | -10/Mines | Assembled infested the area 2625 | -10/Mines | Discovered exit to Subcaves (range 9) 2662 | -10/Mines | Build established: Mutant 2782 | -10/Mines | Central database locked down 2994 | -10/Mines | Assisted by bots powering up and referring to "LRC-V3" 3290 | -10/Mines | Discovered new exit (range 10) 3496 | -10/Mines | Entered Subcaves 3496 | -10/Subcaves | Accompanied by 3 allies 3656 | -10/Subcaves | Core integrity fell below 50% 3678 | -10/Subcaves | Core integrity fell below 20% 3683 | -10/Subcaves | Destroyed by 0A-7PT(R) with Subdweller Beam Cannon Last Messages --------------- LOCATION=SUBCAVES AMBIENT_HEAT=-10 GOAL=ESCAPE Loading 4 Subcaves zones... 03565_ System corrupted: Matter fused (-10). 03624_ S-10 Pest destroyed. 03624_ Switching to secondary target: S-10 Pest. 03624_ S-10 Pest destroyed. 03628_ Acquired 10 matter. 03630_ Flight Unit fries itself beyond repair. 03631_ Lgt. Assault Rifle fries itself beyond repair. 03632_ Subatomizers dissect the Lgt. Assault Rifle. 03633_ System corrupted: Heat flow error (+146). 03634_ Flight Unit fries itself beyond repair. 03651_ Ion Engine destroyed. 03657_ EM Pulse Gun destroyed. 03657_ Imp. Terrain Scanner destroyed. 03660_ OO-EK9(R) destroyed. 03663_ Mercenary 1a destroyed. Map ----- +----------------------------------------------------+ | ?#???????????????????????????????????????????????? | | ?????????????????????????????????????????????????? | | ?????????????????????????????????????????????????? | | ?????????# #+## ##???????????????????????????? | | ????#????#" ##" "# ???????????????????????????? | | ?????????#" #### ## ???????????????????????????? | | ?????#???#"" ### #" ???????????????????????????? | | ?????????#"X ### ???????????????????????????? | | ???#?#???#"" ### ???????????????????????????? | | ?????????#" ### #"" ???????????????????????????? | | ?????????## ##" ###"???????????????????????????? | | ###??????#""###? "## ???????????????????????????? | | #??????# ###? " ?##???????????????????????????? | | #????#?#####" ???##???????????????????????????? | | #??????????#####?# ??????? ???????????????????? | | ###??????????????# ???????????????????????????? | | #??????????????# ???? ???????? ?????????????? | | #?????????????####????????????? ?????????????? | | ##????????????#??#??????????# #?????????????? | | #?????????????????????????# ??????????????? | | # #????????????????????????#"" ???????????????? | | # ##????????????????????? ????????????????? | | ## #???????#?????????????? ??????????????????? | | ### ##?????#??????????????# #??? #?????????????? | | #?###?????????##???????#### # #?????????????? | | ???#???#?#?????????????##@%&" #??????????????? | | ????????????#??###?????#*%R" # ## #?????????????? | | ?????#####????## #####?#g=""##???????????????????? | | ###?## #??### "###g""##???????#????????????? | | ### #?## ""## ""#?????????????????????? | | ### ### ""#???????????#?????????? | | ## #### ""#?????????#???????????? | | ######## ### "#?????????????????????? | | #?#????## "=## ""# #### #?????????????? | | #?????## %"""=%[" #??????????????? | | #?????### [% #??????????????? | | #### #???????## ### # ##??????????????? | | #???###????????# #??####??????????????????? | | #??????#?#?????## ##????????????????????????? | | #?#?????????????########????????#????????????????? | | ????????????????????????????????#????????????????? | | ????#?????????#??????????????????#???????????????? | | ????????????????#??????????#?????????????????????? | | ??????????????????#??????????????????????????????? | | ?????????????????????????????????????????????????? | | ?????????????????????????????????????????????????? | | ???????????????????????##????????????????????????? | | ?????????????????????????????????????????????????? | | ?????????????????????????????????????????????????? | | ?????????????????????????????????????????????????? | +----------------------------------------------------+ Best States ------------- Heat Dissipation 25 Energy Generation 10 Energy Capacity 250 Matter Stores 300 Matter Capacity 300 Sight Range 16 Terrain Scan Range 16 Terrain Scan Density 10 Evasion (%) 55 Recoil Reduction 1 Item Schematics ----------------- None Robot Schematics ------------------ None Fabricated ------------ Nothing Repaired ---------- EM Pulse Gun | 8% | -10/Materials Studied --------- None Alien Tech Used ----------------- None Achievements -------------- None Challenges ------------ None Game ------ Seed SixProcessingRedistributor Manual? 0 Play Time 00:22:59 Cumulative 853.0 hours Start 2025.12.11 @ 06:15:09 End 2025.12.11 @ 06:36:37 Sessions 1 Manual Loads 0 Difficulty Rogue Special Mode None Game No. 548 Rogue 548 Adventurer 0 Explorer 0 Win Type - Total 1 Types 1/0/0/0/0/0/0/0/0/0 Lore% 78 Gallery% 72 Achievement% 52 Wizard Run 0 Options --------- Layout 1 ASCII 0 Keyboard 0 Movement Mouse Keybinds 0 Fullscreen 1 Font 20/SmallcapsGlow Map View 54x42 Zoom Use 0% Tactical HUD 1 Map Filters NONE Filters NONE Steam 1 RUN: 18bd356c-ca7c-409b-874f-c6b1ce172bec